fUST/lending_fUST_20250429
["ID","MTS","AMOUNT","RATE_DAILY","PERIOD"]
[359269998,1745881836802,-500.0,0.0002026,2]
[359269999,1745881836812,-400.0,0.0002026,2]
[359270000,1745881836821,-400.0,0.0002026,2]
[359270001,1745881836830,-400.0,0.0002026,2]
[359270002,1745881836839,-262.83281415,0.0002026,2]
[359270003,1745881836848,-500.0,0.0002026,2]
[359270004,1745881836857,-500.0,0.0002026,2]
[359270005,1745881836866,-200.34270891,0.0002026,2]
[359270006,1745881836875,-408.32168639,0.0002026,2]
[359270007,1745881836884,-400.0,0.0002026,2]
[359270008,1745881836893,-400.0,0.0002026,2]
[359270009,1745881836903,-400.0,0.0002026,2]
[359270010,1745881836913,-400.0,0.0002026,2]
[359270011,1745881836923,-500.0,0.0002026,2]
[359270012,1745881836932,-400.0,0.0002026,2]
[359270013,1745881836941,-500.0,0.0002026,2]
[359270014,1745881836951,-500.0,0.0002026,2]
[359270015,1745881836961,-417.61699344,0.0002026,2]
[359270016,1745881836972,-500.0,0.0002026,2]
[359270017,1745881836983,-500.0,0.0002026,2]
[359270018,1745881836993,-507.44622628,0.0002026,2]
[359270019,1745881837003,-1716.42,0.0002026,2]
[359270020,1745881837014,-400.0,0.0002026,2]
[359270021,1745881837023,-543.12,0.0002026,2]
[359270022,1745881837033,-400.0,0.0002026,2]
[359270023,1745881837042,-500.0,0.0002026,2]
[359270024,1745881837052,-500.0,0.0002026,2]
[359270025,1745881837061,-400.0,0.0002026,2]
[359270026,1745881837071,-500.0,0.0002026,2]
[359270027,1745881837080,-400.0,0.0002026,2]
[359270028,1745881837091,-400.0,0.0002026,2]
[359270029,1745881837100,-303.07540814,0.0002026,2]
[359270030,1745881837109,-787.0,0.0002026,2]
[359270031,1745881837119,-521.51087522,0.0002026,2]
[359270032,1745881837128,-500.0,0.0002026,2]
[359270033,1745881837137,-400.0,0.0002026,2]
[359270034,1745881837147,-500.0,0.0002026,2]
[359270035,1745881837157,-1000.0,0.0002026,2]
[359270036,1745881837166,-500.0,0.0002026,2]
[359270037,1745881837175,-500.0,0.0002026,2]
[359270038,1745881837185,-400.0,0.0002026,2]
[359270039,1745881837194,-400.0,0.0002026,2]
[359270040,1745881837204,-400.0,0.0002026,2]
[359270041,1745881837214,-400.0,0.0002026,2]
[359270042,1745881837223,-400.0,0.0002026,2]
[359270043,1745881837234,-400.0,0.0002026,2]
[359270044,1745881837243,-400.0,0.0002026,2]
[359270045,1745881837253,-400.0,0.0002026,2]
[359270046,1745881837263,-400.0,0.0002026,2]
[359270047,1745881837274,-400.0,0.0002026,2]
[359270048,1745881837284,-400.0,0.0002026,2]
[359270049,1745881837294,-400.0,0.0002026,2]
[359270050,1745881837303,-500.0,0.0002026,2]
[359270051,1745881837315,-400.0,0.0002026,2]
[359270052,1745881837326,-500.0,0.0002026,2]
[359270053,1745881837336,-400.0,0.0002026,2]
[359270054,1745881837346,-400.0,0.0002026,2]
[359270055,1745881837358,-400.0,0.0002026,2]
[359270056,1745881837368,-400.0,0.0002026,2]
[359270057,1745881837379,-500.0,0.0002026,2]
[359270058,1745881837389,-500.0,0.0002026,2]
[359270059,1745881837399,-489.38,0.0002026,2]
[359270060,1745881837408,-167.01157647,0.0002026,2]
[359270061,1745881837418,-500.0,0.0002026,2]
[359270062,1745881837428,-400.0,0.0002026,2]
[359270063,1745881837438,-500.0,0.0002026,2]
[359270064,1745881837449,-504.19725742,0.0002026,2]
[359270065,1745881837459,-500.0,0.0002026,2]
[359270066,1745881837469,-500.0,0.0002026,2]
[359270067,1745881837478,-400.0,0.0002026,2]
[359270068,1745881837488,-500.0,0.0002026,2]
[359270069,1745881837498,-623.94,0.0002026,2]
[359270070,1745881837508,-500.0,0.0002026,2]
[359270071,1745881837519,-167.97316963,0.0002026,2]
[359270073,1745881837529,-400.0,0.0002026,2]
[359270074,1745881837540,-400.0,0.0002026,2]
[359270075,1745881837551,-400.0,0.0002026,2]
[359270076,1745881837561,-500.0,0.0002026,2]
[359270077,1745881837570,-186.84042679,0.0002026,2]
[359270078,1745881837580,-400.0,0.0002026,2]
[359270079,1745881837590,-400.0,0.0002026,2]
[359270080,1745881837601,-500.0,0.0002026,2]
[359270081,1745881837611,-400.0,0.0002026,2]
[359270082,1745881837620,-400.0,0.0002026,2]
[359270083,1745881837630,-760.86,0.0002026,2]
[359270085,1745881837639,-400.0,0.0002026,2]
[359270086,1745881837648,-400.0,0.0002026,2]
[359270088,1745881837657,-413.38,0.0002026,2]
[359270090,1745881837667,-400.0,0.0002026,2]
[359270092,1745881837680,-400.0,0.0002026,2]
[359270094,1745881837690,-400.0,0.0002026,2]
[359270096,1745881837699,-400.0,0.0002026,2]
[359270098,1745881837709,-400.0,0.0002026,2]
[359270100,1745881837718,-400.0,0.0002026,2]
[359270101,1745881837727,-400.0,0.0002026,2]
[359270102,1745881837737,-400.0,0.0002026,2]
[359270103,1745881837746,-400.0,0.0002026,2]
[359270104,1745881837755,-400.0,0.0002026,2]
[359270105,1745881837765,-501.53,0.0002026,2]
[359270106,1745881837776,-400.0,0.0002026,2]
[359270107,1745881837785,-417.54,0.0002026,2]
[359270108,1745881837794,-400.0,0.0002026,2]
[359270109,1745881837804,-500.0,0.00020262,2]
[359270110,1745881837814,-500.0,0.00020262,2]
[359270111,1745881837823,-500.0,0.00020262,2]
[359270112,1745881837832,-552.69,0.00020262,2]
[359270114,1745881837842,-400.0,0.00020262,2]
[359270115,1745881837851,-1249.89,0.00020262,2]
[359270116,1745881837861,-836.4,0.00020262,2]
[359270117,1745881837871,-200.0,0.00020262,2]
[359270118,1745881837881,-400.0,0.00020262,2]
[359270119,1745881837890,-2523.68,0.00020262,2]
[359270120,1745881837900,-400.0,0.00020262,2]
[359270121,1745881837910,-1861.05,0.00020262,2]
[359270122,1745881837919,-400.0,0.00020262,2]
[359270123,1745881837929,-694.46,0.00020262,2]
[359270124,1745881837938,-400.0,0.00020262,2]
[359270125,1745881837947,-443.93,0.00020262,2]
[359270126,1745881837957,-400.0,0.00020262,2]
[359270127,1745881837967,-400.0,0.00020262,2]
[359270128,1745881837976,-400.0,0.00020262,2]
[359270129,1745881837986,-1052.18,0.00020262,2]
[359270130,1745881837995,-500.0,0.00020263,2]
[359270131,1745881838005,-400.0,0.00020263,2]
[359270132,1745881838014,-500.0,0.00020263,2]
[359270133,1745881838024,-400.0,0.00020263,2]
[359270134,1745881838034,-154.723611,0.00020263,2]
[359270135,1745881838043,-151.0,0.00020263,2]
[359270136,1745881838052,-151.0,0.00020263,2]
[359270137,1745881838061,-400.0,0.00020266,2]
[359270138,1745881838070,-400.0,0.00020266,2]
[359270139,1745881838080,-2083.6,0.00020266,2]
[359270140,1745881838089,-400.0,0.00020266,2]
[359270141,1745881838099,-400.0,0.00020266,2]
[359270142,1745881838109,-400.0,0.00020266,2]
[359270143,1745881838275,-400.0,0.00020266,2]
[359270144,1745881838286,-500.0,0.00020266,2]
[359270145,1745881838296,-400.0,0.00020266,2]
[359270146,1745881838305,-500.0,0.00020266,2]
[359270147,1745881838315,-632.19,0.00020266,2]
[359270148,1745881838324,-500.0,0.00020266,2]
[359270149,1745881838334,-400.0,0.00020266,2]
[359270150,1745881838344,-874.36,0.00020266,2]
[359270151,1745881838353,-455.13,0.00020266,2]
[359270152,1745881838363,-1082.29,0.00020266,2]
[359270153,1745881838373,-400.0,0.00020266,2]
[359270154,1745881838383,-534.32,0.00020266,2]
[359270155,1745881838393,-547.37,0.00020266,2]
[359270156,1745881838402,-400.0,0.00020266,2]
[359270157,1745881838413,-400.0,0.00020266,2]
[359270158,1745881838422,-400.0,0.00020266,2]
[359270159,1745881838432,-400.0,0.00020266,2]
[359270160,1745881838442,-400.0,0.00020266,2]
[359270161,1745881838451,-400.0,0.00020266,2]
[359270162,1745881838462,-154.861119,0.00020267,2]
[359270163,1745881838471,-500.0,0.00020267,2]
[359270164,1745881838481,-400.0,0.00020267,2]
[359270165,1745881838491,-3215.02177542,0.00020271,2]
[359270166,1745881838501,-500.0,0.00020273,2]
[359270167,1745881838511,-500.0,0.00020273,2]
[359270168,1745881838521,-500.0,0.00020273,2]
[359270169,1745881838530,-500.0,0.00020273,2]
[359270170,1745881838539,-194.80074453,0.00020273,2]
[359270171,1745881838549,-500.0,0.00020273,2]
[359270172,1745881838558,-500.0,0.00020273,2]
[359270173,1745881838568,-500.0,0.00020273,2]
[359270174,1745881838578,-500.0,0.00020273,2]
[359270175,1745881838587,-211.04845706,0.00020273,2]
[359270176,1745881838597,-500.31923507,0.00020273,2]
[359270177,1745881838607,-500.0,0.00020273,2]
[359270178,1745881838617,-500.0,0.00020273,2]
[359270179,1745881838626,-500.0,0.00020273,2]
[359270180,1745881838636,-500.0,0.00020273,2]
[359270181,1745881838648,-500.0,0.00020273,2]
[359270182,1745881838659,-500.0,0.00020273,2]
[359270183,1745881838668,-500.0,0.00020273,2]
[359270184,1745881838681,-500.0,0.00020273,2]
[359270185,1745881838690,-500.0,0.00020273,2]
[359270186,1745881838699,-500.0,0.00020273,2]
[359270187,1745881838710,-151.0,0.00020273,2]
[359270188,1745881838719,-151.0,0.00020273,2]
[359270189,1745881838730,-400.0,0.00020436,2]
[359270190,1745881838739,-400.0,0.00020436,2]
[359270191,1745881838749,-300.0,0.00020436,2]
[359270192,1745881838759,-656.42,0.00020436,2]
[359270193,1745881838768,-400.0,0.00020436,2]
[359270194,1745881838778,-1074.84,0.00020436,2]
[359270195,1745881838788,-894.15,0.00020436,2]
[359270196,1745881838798,-2013.33,0.00020436,2]
[359270197,1745881838807,-400.0,0.00020437,2]
[359270198,1745881838817,-400.0,0.00020439,2]
[359270199,1745881838827,-2760.89,0.00020439,2]
[359270200,1745881838836,-500.0,0.00020439,2]
[359270201,1745881838847,-4178.27,0.00020439,2]
[359270202,1745881838857,-400.0,0.00020439,2]
[359270203,1745881838867,-400.0,0.00020439,2]
[359270204,1745881838877,-421.36,0.00020439,2]
[359270205,1745881838887,-1246.38,0.00020439,2]
[359270206,1745881838896,-229.172766,0.00020439,2]
[359270207,1745881838906,-5908.82,0.00020439,2]
[359270208,1745881838916,-164.024007,0.00020439,2]
[359270209,1745881838926,-400.0,0.00020439,2]
[359270210,1745881838935,-151.0,0.00020439,2]
[359270211,1745881838944,-1081.33,0.00020439,2]
[359270212,1745881838953,-400.0,0.00020439,2]
[359270213,1745881838964,-6820.57,0.00020439,2]
[359270214,1745881838974,-1232.17,0.00020439,2]
[359270215,1745881838983,-400.0,0.00020439,2]
[359270216,1745881838992,-400.0,0.00020439,2]
[359270217,1745881839000,-2166.39,0.00020439,2]
[359270218,1745881839010,-400.0,0.00020439,2]
[359270219,1745881839019,-851.76,0.00020439,2]
[359270220,1745881839029,-400.0,0.00020439,2]
[359270221,1745881839038,-2216.81,0.00020439,2]
[359270222,1745881839048,-400.0,0.00020439,2]
[359270223,1745881839057,-637.65,0.00020439,2]
[359270224,1745881839066,-300.0,0.0002044,2]
[359270225,1745881839076,-400.0,0.0002044,2]
[359270226,1745881839085,-400.0,0.0002044,2]
[359270227,1745881839094,-400.0,0.0002044,2]
[359270228,1745881839104,-400.0,0.0002044,2]
[359270229,1745881839115,-232.01712451,0.0002044,2]
[359270230,1745881839124,-400.0,0.0002044,2]
[359270231,1745881839134,-400.0,0.0002044,2]
[359270232,1745881839144,-400.0,0.0002044,2]
[359270233,1745881839154,-400.0,0.0002044,2]
[359270234,1745881839164,-400.0,0.0002044,2]
[359270235,1745881839174,-400.0,0.0002044,2]
[359270236,1745881839184,-400.0,0.0002044,2]
[359270237,1745881839193,-400.0,0.0002044,2]
[359270238,1745881839203,-400.0,0.0002044,2]
[359270239,1745881839212,-400.0,0.0002044,2]
[359270240,1745881839222,-400.0,0.0002044,2]
[359270241,1745881839231,-400.0,0.0002044,2]
[359270242,1745881839241,-400.0,0.0002044,2]
[359270243,1745881839252,-400.0,0.0002044,2]
[359270244,1745881839262,-400.0,0.0002044,2]
[359270245,1745881839271,-400.0,0.0002044,2]
[359270246,1745881839280,-731.7,0.0002044,2]
[359270247,1745881839290,-400.0,0.0002044,2]
[359270248,1745881839299,-400.0,0.0002044,2]
[359270249,1745881839309,-555.0,0.0002044,2]
[359270250,1745881839318,-400.0,0.0002044,2]
[359270251,1745881839327,-400.0,0.0002044,2]
[359270252,1745881839336,-171.24756477,0.0002044,2]
[359270253,1745881839350,-835.12,0.0002044,2]
[359270254,1745881839359,-400.0,0.0002044,2]
[359270255,1745881839369,-400.0,0.0002044,2]
[359270256,1745881839378,-400.0,0.0002044,2]
[359270257,1745881839388,-400.0,0.0002044,2]
[359270258,1745881839397,-400.0,0.0002044,2]
[359270259,1745881839407,-400.0,0.0002044,2]
[359270260,1745881839416,-400.0,0.0002044,2]
[359270261,1745881839425,-400.0,0.0002044,2]
[359270262,1745881839435,-400.0,0.0002044,2]
[359270263,1745881839445,-400.0,0.0002044,2]
[359270264,1745881839455,-400.0,0.0002044,2]
[359270265,1745881839464,-400.0,0.0002044,2]
[359270266,1745881839473,-389.54475753,0.0002044,2]
[359270268,1745881839483,-261.49040629,0.0002044,2]
[359270270,1745881839492,-400.0,0.0002044,2]
[359270271,1745881839502,-400.0,0.0002044,2]
[359270273,1745881839511,-400.0,0.0002044,2]
[359270274,1745881839521,-400.0,0.0002044,2]
[359270275,1745881839531,-400.0,0.0002044,2]
[359270276,1745881839540,-400.0,0.0002044,2]
[359270277,1745881839550,-400.0,0.0002044,2]
[359270278,1745881839559,-408.77,0.0002044,2]
[359270279,1745881839568,-400.0,0.0002044,2]
[359270280,1745881839577,-400.0,0.0002044,2]
[359270281,1745881839587,-400.0,0.0002044,2]
[359270282,1745881839595,-400.0,0.0002044,2]
[359270283,1745881839605,-400.0,0.0002044,2]
[359270284,1745881839614,-400.0,0.0002044,2]
[359270286,1745881839624,-400.0,0.0002044,2]
[359270288,1745881839633,-400.0,0.0002044,2]
[359270290,1745881839643,-400.0,0.0002044,2]
[359270292,1745881839652,-400.0,0.0002044,2]
[359270294,1745881839662,-400.0,0.0002044,2]
[359270296,1745881839671,-400.0,0.0002044,2]
[359270298,1745881839685,-400.0,0.0002044,2]
[359270300,1745881839695,-400.0,0.0002044,2]
[359270302,1745881839704,-400.0,0.0002044,2]
[359270304,1745881839714,-400.0,0.0002044,2]
[359270305,1745881839724,-400.0,0.0002044,2]
[359270306,1745881839734,-400.0,0.0002044,2]
[359270307,1745881839743,-400.0,0.0002044,2]
[359270308,1745881839753,-435.19,0.0002044,2]
[359270309,1745881839762,-400.0,0.0002044,2]
[359270310,1745881839772,-400.0,0.0002044,2]
[359270311,1745881839781,-400.0,0.0002044,2]
[359270312,1745881839791,-400.0,0.0002044,2]
[359270313,1745881839801,-208.59212405,0.0002044,2]
[359270314,1745881839810,-400.0,0.0002044,2]
[359270315,1745881839820,-400.0,0.0002044,2]
[359270316,1745881839829,-442.09,0.0002044,2]
[359270318,1745881839839,-400.0,0.0002044,2]
[359270319,1745881839849,-400.0,0.0002044,2]
[359270320,1745881839859,-1007.57,0.0002044,2]
[359270322,1745881839868,-400.0,0.0002044,2]
[359270323,1745881839878,-400.0,0.0002044,2]
[359270324,1745881839888,-400.0,0.0002044,2]
[359270325,1745881839897,-400.0,0.0002044,2]
[359270326,1745881839907,-400.0,0.0002044,2]
[359270327,1745881839916,-891.46,0.0002044,2]
[359270328,1745881839925,-400.0,0.0002044,2]
[359270329,1745881839934,-400.0,0.0002044,2]
[359270330,1745881839943,-400.0,0.0002044,2]
[359270331,1745881839953,-151.0,0.0002044,2]
[359270332,1745881839962,-400.0,0.0002044,2]
[359270333,1745881839972,-400.0,0.0002044,2]
[359270334,1745881839981,-400.0,0.0002044,2]
[359270335,1745881839991,-400.0,0.0002044,2]
[359270336,1745881840001,-400.0,0.0002044,2]
[359270337,1745881840011,-554.3,0.0002044,2]
[359270338,1745881840020,-400.0,0.0002044,2]
[359270339,1745881840029,-400.0,0.0002044,2]
[359270340,1745881840038,-400.0,0.0002044,2]
[359270341,1745881840048,-400.0,0.0002044,2]
[359270342,1745881840057,-400.0,0.0002044,2]
[359270343,1745881840067,-400.0,0.0002044,2]
[359270344,1745881840076,-500.0,0.0002044,2]
[359270345,1745881840086,-400.0,0.0002044,2]
[359270346,1745881840095,-459.71,0.0002044,2]
[359270347,1745881840105,-400.0,0.0002044,2]
[359270348,1745881840114,-400.0,0.0002044,2]
[359270350,1745881840123,-400.0,0.0002044,2]
[359270351,1745881840133,-543.56,0.0002044,2]
[359270353,1745881840143,-400.0,0.0002044,2]
[359270355,1745881840152,-400.0,0.0002044,2]
[359270356,1745881840162,-400.0,0.0002044,2]
[359270357,1745881840172,-1218.87,0.0002044,2]
[359270359,1745881840182,-759.39,0.0002044,2]
[359270361,1745881840191,-400.0,0.0002044,2]
[359270363,1745881840201,-400.0,0.0002044,2]
[359270365,1745881840211,-791.97,0.0002044,2]
[359270367,1745881840221,-1166.76,0.0002044,2]
[359270369,1745881840230,-400.0,0.0002044,2]
[359270371,1745881840241,-1315.7,0.0002044,2]
[359270373,1745881840250,-400.0,0.0002044,2]
[359270375,1745881840259,-945.14,0.0002044,2]
[359270377,1745881840268,-400.0,0.0002044,2]
[359270379,1745881840278,-400.0,0.0002044,2]
[359270381,1745881840287,-400.0,0.0002044,2]
[359270383,1745881840297,-400.0,0.0002044,2]
[359270385,1745881840306,-732.34,0.0002044,2]
[359270387,1745881840316,-400.0,0.0002044,2]
[359270389,1745881840326,-400.0,0.0002044,2]
[359270391,1745881840336,-400.0,0.0002044,2]
[359270393,1745881840345,-400.0,0.0002044,2]
[359270395,1745881840355,-400.0,0.0002044,2]
[359270397,1745881840365,-812.06,0.0002044,2]
[359270399,1745881840374,-400.0,0.0002044,2]
[359270401,1745881840384,-405.37,0.0002044,2]
[359270403,1745881840393,-500.0,0.0002044,2]
[359270405,1745881840404,-400.0,0.0002044,2]
[359270407,1745881840414,-400.0,0.0002044,2]
[359270409,1745881840423,-400.0,0.0002044,2]
[359270411,1745881840434,-982.88,0.0002044,2]
[359270413,1745881840443,-400.0,0.0002044,2]
[359270415,1745881840452,-400.0,0.0002044,2]
[359270417,1745881840462,-843.06,0.0002044,2]
[359270419,1745881840471,-908.46,0.0002044,2]
[359270421,1745881840480,-400.0,0.0002044,2]
[359270423,1745881840490,-400.0,0.0002044,2]
[359270425,1745881840499,-400.0,0.0002044,2]
[359270427,1745881840509,-1314.6,0.0002044,2]
[359270429,1745881840517,-151.0,0.0002044,2]
[359270431,1745881840527,-163.28600041,0.0002044,2]
[359270433,1745881840536,-1867.25,0.0002044,2]
[359270435,1745881840545,-412.69,0.0002044,2]
[359270436,1745881840555,-400.0,0.0002044,2]
[359270437,1745881840564,-500.0,0.0002044,2]
[359270438,1745881840573,-400.0,0.0002044,2]
[359270439,1745881840583,-468.43,0.0002044,2]
[359270440,1745881840592,-400.0,0.0002044,2]
[359270441,1745881840601,-400.0,0.0002044,2]
[359270442,1745881840655,-101.4085784,0.0002044,2]
[359270443,1745881840682,-348.3814216,0.0002044,2]
[359270444,1745881840691,-99.03324559,0.0002044,2]
[359270445,1745881840724,-300.96675441,0.0002044,2]
[359270446,1745881840733,-547.48,0.0002044,2]
[359270447,1745881840742,-151.244324,0.0002044,2]
[359270448,1745881840751,-151.0,0.0002044,2]
[359270450,1745881840760,-453.55,0.0002044,2]
[359270452,1745881840771,-500.0,0.0002044,2]
[359270454,1745881840780,-500.0,0.0002044,2]
[359270456,1745881840790,-521.19,0.0002044,2]
[359270458,1745881840799,-400.0,0.0002044,2]
[359270460,1745881840808,-1634.38,0.0002044,2]
[359270462,1745881840818,-400.0,0.0002044,2]
[359270464,1745881840828,-400.0,0.0002044,2]
[359270466,1745881840837,-245.45418253,0.0002044,2]
[359270468,1745881840847,-558.63,0.0002044,2]
[359270470,1745881840856,-400.0,0.0002044,2]
[359270472,1745881840866,-500.0,0.0002044,2]
[359270474,1745881840875,-500.0,0.0002044,2]
[359270476,1745881840885,-400.0,0.0002044,2]
[359270478,1745881840894,-500.0,0.0002044,2]
[359270480,1745881840903,-400.0,0.0002044,2]
[359270482,1745881840913,-619.38,0.0002044,2]
[359270484,1745881840922,-677.02,0.0002044,2]
[359270486,1745881840932,-500.0,0.0002044,2]
[359270488,1745881840942,-500.0,0.0002044,2]
[359270490,1745881840951,-400.0,0.0002044,2]
[359270492,1745881840960,-500.0,0.0002044,2]
[359270494,1745881840970,-400.0,0.0002044,2]
[359270496,1745881840979,-500.0,0.0002044,2]
[359270498,1745881840988,-500.0,0.0002044,2]
[359270500,1745881840998,-400.0,0.0002044,2]
[359270502,1745881841007,-500.0,0.0002044,2]
[359270504,1745881841017,-500.0,0.0002044,2]
[359270506,1745881841027,-500.0,0.0002044,2]
[359270508,1745881841036,-298.80184552,0.0002044,2]
[359270510,1745881841045,-500.0,0.00020441,2]
[359270512,1745881841054,-479.01,0.00020441,2]
[359270514,1745881841063,-400.0,0.00020441,2]
[359270516,1745881841073,-400.0,0.00020441,2]
[359270518,1745881841082,-400.0,0.00020441,2]
[359270520,1745881841091,-400.0,0.00020441,2]
[359270522,1745881841100,-732.41,0.00020441,2]
[359270524,1745881841110,-400.0,0.00020441,2]
[359270526,1745881841119,-400.0,0.00020441,2]
[359270528,1745881841129,-400.0,0.00020441,2]
[359270530,1745881841138,-660.46,0.00020441,2]
[359270532,1745881841148,-400.0,0.00020441,2]
[359270534,1745881841157,-400.0,0.00020441,2]
[359270536,1745881841167,-400.0,0.00020441,2]
[359270538,1745881841176,-400.0,0.00020441,2]
[359270540,1745881841186,-400.0,0.00020441,2]
[359270542,1745881841195,-1401.24,0.00020441,2]
[359270544,1745881841204,-300.0,0.00020441,2]
[359270546,1745881841213,-300.0,0.00020441,2]
[359270547,1745881841222,-711.61,0.00020441,2]
[359270549,1745881841231,-400.0,0.00020441,2]
[359270552,1745881841240,-300.0,0.00020441,2]
[359270553,1745881841250,-306.66251692,0.00020441,2]
[359270555,1745881841262,-400.0,0.00020441,2]
[359270557,1745881841271,-400.0,0.00020441,2]
[359270559,1745881841280,-400.0,0.00020441,2]
[359270562,1745881841290,-273.25422142,0.00020441,2]
[359270564,1745881841300,-200.0,0.00020441,2]
[359270566,1745881841309,-400.0,0.00020441,2]
[359270568,1745881841318,-575.64,0.00020441,2]
[359270570,1745881841327,-517.04,0.00020441,2]
[359270571,1745881841336,-400.0,0.00020441,2]
[359270573,1745881841346,-400.0,0.00020441,2]
[359270576,1745881841356,-500.0,0.00020441,2]
[359270578,1745881841366,-636.86,0.00020441,2]
[359270580,1745881841375,-400.0,0.00020441,2]
[359270582,1745881841385,-400.0,0.00020441,2]
[359270584,1745881841394,-2780.42,0.00020441,2]
[359270586,1745881841404,-500.0,0.00020441,2]
[359270588,1745881841414,-435.77,0.00020441,2]
[359270590,1745881841423,-1862.66,0.00020441,2]
[359270592,1745881841432,-400.0,0.00020441,2]
[359270594,1745881841441,-1082.86,0.00020441,2]
[359270595,1745881841450,-400.0,0.00020441,2]
[359270597,1745881841459,-400.0,0.00020441,2]
[359270599,1745881841468,-500.0,0.00020441,2]
[359270601,1745881841478,-400.0,0.00020441,2]
[359270603,1745881841487,-482.41,0.00020441,2]
[359270605,1745881841498,-400.0,0.00020441,2]
[359270607,1745881841507,-400.0,0.00020441,2]
[359270609,1745881841517,-675.853895,0.00020441,2]
[359270611,1745881841526,-151.0,0.00020441,2]
[359270614,1745881841537,-675.853895,0.00020441,2]
[359270615,1745881841547,-151.0,0.00020441,2]
[359270617,1745881841556,-74.05322905,0.00020441,2]
[359270641,1745881841784,-4613.20677095,0.00020441,2]
[359270643,1745881841794,-400.0,0.00020441,2]
[359270645,1745881841803,-400.0,0.00020441,2]
[359270647,1745881841813,-2496.76,0.00020441,2]
[359270649,1745881841823,-534.9,0.00020441,2]
[359270651,1745881841833,-888.72,0.00020441,2]
[359270653,1745881841843,-151.0,0.00020441,2]
[359270655,1745881841853,-1476.58,0.00020441,2]
[359270657,1745881841862,-645.27,0.00020441,2]
[359270659,1745881841873,-400.0,0.00020441,2]
[359270661,1745881841883,-400.0,0.00020441,2]
[359270663,1745881841894,-400.0,0.00020441,2]
[359270665,1745881841904,-400.0,0.00020441,2]
[359270667,1745881841913,-638.81,0.00020441,2]
[359270669,1745881841923,-668.26,0.00020441,2]
[359270671,1745881841932,-843.15,0.00020441,2]
[359270673,1745881841942,-477.68,0.00020441,2]
[359270675,1745881841951,-228.97027364,0.00020441,2]
[359270677,1745881841961,-294.9503569,0.00020476,2]
[359270679,1745881841973,-2920.07141852,0.00020476,2]
[359270681,1745881841982,-151.0,0.00020532,2]
[359270683,1745881841992,-151.0,0.00020532,2]
[359270685,1745881842001,-151.0,0.00020532,2]
[359270687,1745881842011,-400.0,0.00020534,2]
[359270689,1745881842020,-400.0,0.00020534,2]
[359270691,1745881842030,-400.0,0.00020534,2]
[359270693,1745881842040,-400.0,0.00020534,2]
[359270695,1745881842050,-400.0,0.00020534,2]
[359270697,1745881842060,-400.0,0.00020534,2]
[359270699,1745881842069,-500.0,0.00020534,2]
[359270701,1745881842080,-500.0,0.00020534,2]